Cogmind - Beta 15 @@@ ROGUE MODE // 2025.08.17 @ 11:20:41 Player: WitherScout Result: Self-destructed Performance ------------- Evolutions (4) 2000 Regions Visited (6) 1200 Robots Destroyed (21) 105 Value Destroyed (556) 556 Prototype IDs (2) 40 Alien Tech Used (0) 0 Bonus (33) 33 TOTAL SCORE: 3934 Bonus ------- Follower Combat Kills 33 Cogmind --------- Core Integrity 850/850 Matter 34/300 Energy 250/250 System Corruption 0% Temperature Cool (0) Movement Hovering (180) Ox2 Location -6/Factory Parts ------- > --- POWER (1) -------- Ion Engine > --- PROPULSION (6) --- Improved Hover Unit > --- UTILITY (5) ------ Small Storage Unit Launcher Guidance Computer Light Armor Plating Hacking Suite > --- WEAPON (3) ------- Grenade Launcher > --- INVENTORY (8) ---- Light Nuclear Core Light Nuclear Core Hover Unit Aerolev Unit Thief Drone Bay (3/3) Light Assault Rifle Peak State ------------ > --- POWER ------------ Ion Engine > --- PROPULSION ------- Hover Unit Improved Hover Unit Improved Hover Unit Improved Hover Unit Airjet Aerolev Unit > --- UTILITY ---------- Small Storage Unit Launcher Guidance Computer Light Armor Plating Light Armor Plating Hacking Suite > --- WEAPON ----------- Grenade Launcher Grenade Launcher Grenade Launcher > --- INVENTORY -------- Light Nuclear Core Light Nuclear Core Hover Unit Thief Drone Bay Light Assault Rifle [Rating: 29] Favorites ----------- Power Ion Engine Engine Ion Engine Propulsion Hover Unit Leg Aluminum Leg Hover Unit Hover Unit Utility Small Storage Unit Device Thief Drone Bay Storage Small Storage Unit Processor Launcher Guidance Computer Hackware Hacking Suite Protection Light Armor Plating Weapon Grenade Launcher Energy Gun Small Laser Ballistic Gun Light Assault Rifle Launcher Grenade Launcher Build | -11 -10 -10 -9 -8 -7 -6 ------- Run | Yrd Mat Min Mat Mat Fac Fac Slots Evolved 8 | . . . 2 2 2 2 Power . | . . . . . . . Propulsion 4 | . . . 1 1 1 1 Utility 3 | . . . 1 1 . 1 Weapon 1 | . . . . . 1 . Parts Attached 25 | 6 5 3 1 4 5 1 Power 2 | 1 . . . . 1 . Engine 2 | 1 . . . . 1 . Core . | . . . . . . . Reactor . | . . . . . . . Propulsion 11 | 2 4 . 1 1 2 1 Treads . | . . . . . . . Leg 4 | 2 2 . . . . . Wheel . | . . . . . . . Hover 7 | . 2 . 1 1 2 1 Flight . | . . . . . . . Utility 7 | 1 1 1 . 3 1 . Device 1 | . . 1 . . . . Storage 2 | 1 1 . . . . . Processor 1 | . . . . . 1 . Hackware 1 | . . . . 1 . . Protection 2 | . . . . 2 . . Artifact . | . . . . . . . Weapon 5 | 2 . 2 . . 1 . Energy Gun 1 | 1 . . . . . . Energy Cannon . | . . . . . . . Ballistic Gun 1 | 1 . . . . . . Ballistic Cannon . | . . . . . . . Launcher 3 | . . 2 . . 1 . Special Weapon . | . . . . . . . Impact Weapon . | . . . . . . . Slashing Weapon . | . . . . . . . Piercing Weapon . | . . . . . . . Special Melee Weapon . | . . . . . . . Unidentified Prototypes 2 | . . 1 . . 1 . Parts Lost 8 | . . . . 1 . 7 Power 1 | . . . . 1 . . Propulsion 4 | . . . . . . 4 Utility 1 | . . . . . . 1 Weapon 2 | . . . . . . 2 Highest Loss Streak 7 | . . . . 1 . 7 To Critical Strikes . | . . . . . . . Average Backups 5 | . 5 5 6 6 5 5 Power 2 | . 1 2 2 2 2 2 Propulsion . | . . . . . . 1 Utility . | . . . 1 1 1 1 Weapon 2 | . 2 3 3 2 1 1 Tool/Special . | . . . . . . . Unused Backups 3 | . 1 . . . . 2 Power 3 | . 1 . . . . 2 Propulsion . | . . . . . . . Utility . | . . . . . . . Weapon . | . . . . . . . Tool/Special . | . . . . . . . Average Slot Usage (%) 82 | . 84 85 69 74 91 87 Engine 10 | . 14 14 11 7 5 6 Leg 4 | . 25 . . . . . Hover 24 | . 1 28 25 27 31 32 Storage 11 | . 14 14 11 9 7 6 Processor 1 | . . . . . 5 6 Hackware 2 | . . . . 7 7 6 Protection 2 | . . . . 4 8 10 Energy Gun 2 | . 14 . . . . . Ballistic Gun 2 | . 14 . . . . . Launcher 19 | . . 27 22 18 23 17 Peak Build Rating 29 | 6 7 13 9 15 26 29 Average Rating 10 | 4 6 6 7 12 20 25 On Entrance 9 | . 6 6 7 9 15 26 Naked Turns . | . . . . . . . Heaviest Build 25 | 12 12 16 16 19 22 25 Greatest Support 43 | 20 20 12 19 27 36 43 Greatest Overweight (x) 3 | 3 1 1 2 . . 1 Average Overweight (x) . | . . 1 . . . . Largest Inventory Capacity 10 | 8 10 8 8 8 8 8 Average Capacity 7 | 7 8 8 8 8 8 8 Most Carried 8 | 2 8 6 6 8 7 6 Average Carried 5 | . 5 5 6 6 5 5 Final Capacity 8 | 8 8 8 8 8 8 8 Final Carried 7 | 1 5 6 6 7 7 6 Class Distribution -------------------- 81% | Mutant 18% | Bomber Dominant Class ---------------- Mutant | -10/Materials Mutant | -10/Mines Mutant | -9/Materials Mutant | -8/Materials Bomber | -7/Factory Bomber | -6/Factory Resources | -11 -10 -10 -9 -8 -7 -6 ----------- Run | Yrd Mat Min Mat Mat Fac Fac Matter Collected 584 | 189 124 40 90 107 . 34 Remotely . | . . . . . . . Salvage Created 343 | . 109 . 19 168 . 47 Parts 31 | . 7 . 4 17 . 3 Haulers Intercepted . | . . . . . . . Recyclers Shooed . | . . . . . . . Parts Field Recycled . | . . . . . . . Retrieved Matter . | . . . . . . . Parts Self-Destructed . | . . . . . . . Prevented . | . . . . . . . Kills | -11 -10 -10 -9 -8 -7 -6 ------- Run | Yrd Mat Min Mat Mat Fac Fac Combat Hostiles Destroyed 17 | . 2 . 3 9 . 3 Guns 2 | . 2 . . . . . AOE 15 | . . . 3 9 . 3 Classes Destroyed 6 | . 2 . 1 2 . 1 Worker 2 | . . . . 1 . 1 Builder 1 | . . . . . . 1 Watcher 1 | . 1 . . . . . Swarmer 10 | . . . 3 4 . 3 Grunt 5 | . 2 . . 3 . . Sentry 2 | . . . . 2 . . Best Kill Streak 5 | . 2 . 3 5 . 5 Combat Bots Only 4 | . 2 . 3 4 . 3 Max Kills in Single Turn 2 | . 1 . 2 2 . 2 Gunslinging . | . . . . . . . Exploded 2 | . . . 2 2 . 2 Melee . | . . . . . . . Uniques/NPCs Destroyed . | . . . . . . . Combat | -11 -10 -10 -9 -8 -7 -6 -------- Run | Yrd Mat Min Mat Mat Fac Fac Hostile Shots Fired 78 | . 12 . 7 25 . 34 Missed 34 | . 1 . 3 17 . 13 Hits 44 | . 11 . 4 8 . 21 Projectile 44 | . 11 . 4 8 . 21 Critical Strikes 2 | . . . . . . 2 Damage Taken 694 | . 141 . 47 109 . 397 Core 31 | . 21 . . 10 . . Absorbed by Shields . | . . . . . . . Core Remaining (%) 97 | 100 . 91 100 98 100 . Volleys Fired 33 | . 13 . 2 14 . 4 Largest 2 | . 2 . 2 2 . 1 Hottest 60 | . 60 . 60 60 . 30 Shots Fired 62 | . 26 . 4 28 . 4 Gun 26 | . 26 . . . . . Cannon . | . . . . . . . Launcher 36 | . . . 4 28 . 4 Special . | . . . . . . . Kinetic 13 | . 13 . . . . . Thermal 13 | . 13 . . . . . Explosive 36 | . . . 4 28 . 4 Electromagnetic . | . . . . . . . Robot Hit Streak 17 | . 11 . 4 17 . 4 Robot Miss Streak 3 | . 3 . . 1 . 1 Penetration Max . | . . . . . . . Secondary Targets . | . . . . . . . Shots Hit Robots 39 | . 15 . 2 19 . 3 Core Hits 41 | . 7 . 2 23 . 9 Critical Kills . | . . . . . . . Critical Parts Destroyed . | . . . . . . . Critical Strikes . | . . . . . . . Melee Attacks . | . . . . . . . Impact . | . . . . . . . Slashing . | . . . . . . . Piercing . | . . . . . . . Sneak Attacks . | . . . . . . . Combat Hostiles . | . . . . . . . Follow-up Attacks . | . . . . . . . Damage Inflicted 1622 | . 149 . 227 747 . 499 Guns 149 | . 149 . . . . . Cannons . | . . . . . . . Explosions 1441 | . . . 224 747 . 470 Melee . | . . . . . . . Ramming 32 | . . . 3 . . 29 Kinetic 51 | . 51 . . . . . Thermal 98 | . 98 . . . . . Explosive 1399 | . . . 224 705 . 470 Electromagnetic 42 | . . . . 42 . . Impact . | . . . . . . . Slashing . | . . . . . . . Piercing . | . . . . . . . Highest Corruption . | . . . . . . . Average Corruption . | . . . . . . . Corruption Purged . | . . . . . . . Corruption Blocked . | . . . . . . . Overload Shots . | . . . . . . . Overflow Damage 121 | . . . 25 64 . 32 Projectiles . | . . . . . . . Explosions 121 | . . . 25 64 . 32 Melee . | . . . . . . . Knockbacks . | . . . . . . . Impact . | . . . . . . . Kinetic . | . . . . . . . Secondary . | . . . . . . . Self-Inflicted Damage 121 | . . . 1 35 . 85 Shots 4 | . . . . 2 . 2 Rammed 3 | . . . 1 . . 2 Targets Rammed 3 | . . . 1 . . 2 Kicked . | . . . . . . . Crushed . | . . . . . . . Highest Temperature 115 | . 115 . 3 9 . 18 Average Temperature 36 | . 45 . 3 9 . 18 Received Heat Transfer 150 | . 81 . 15 9 . 45 Siege Activations . | . . . . . . . Martial Activations . | . . . . . . . Shielding Activations . | . . . . . . . Robots Disrupted . | . . . . . . . Combat Hostiles . | . . . . . . . Robots Corrupted . | . . . . . . . Combat Hostiles . | . . . . . . . Parts Fried . | . . . . . . . Impact Corruptions . | . . . . . . . Robots Melted . | . . . . . . . Combat Hostiles . | . . . . . . . Parts Melted . | . . . . . . . Heat Transferred 225 | . 225 . . . . . Parts Sabotaged . | . . . . . . . Parts Stolen . | . . . . . . . Parts Stripped . | . . . . . . . Power Chain Reactions 1 | . . . . 1 . . Alert | -11 -10 -10 -9 -8 -7 -6 ------- Run | Yrd Mat Min Mat Mat Fac Fac Maximum Alert Level . | . . . . . . . Low Security (%) 100 | 100 100 100 100 100 100 100 Level 1 . | . . . . . . . Level 2 . | . . . . . . . Level 3 . | . . . . . . . Level 4 . | . . . . . . . Level 5 . | . . . . . . . High Security . | . . . . . . . Max Security . | . . . . . . . Peak Influence 188 | . 50 . 139 188 49 80 Initial 53 | . . . . 53 49 14 Average 17 | . 12 . 22 47 16 40 Influence Increases 768 | . 57 . 149 396 40 126 Destroy 0b10 Robot/C 360 | . 40 . 80 180 . 60 Destroy 0b10 Robot/NC 20 | . 5 . . 5 . 10 Destroy Leader 72 | . 12 . 20 40 . . Allied During Kill 16 | . . . 16 . . . Successful Hack 36 | . . . . 5 10 21 Disable Machine 105 | . . . 15 75 . 15 Destroy Structure 114 | . . . 18 76 . 20 Partial Spotted 15 | . . . . 15 . . Lose Combat Pursuer 30 | . . . . . 30 . Influence Decreases 718 | . 57 . 20 416 119 106 Entered New Map 152 | . . . . 76 60 16 Time Decay 269 | . 57 . 20 113 59 20 Lost Part 80 | . . . . 10 . 70 Purge Threat 217 | . . . . 217 . . Squads Dispatched 8 | . . . 1 3 1 3 Investigation 5 | . . . 1 2 1 1 Extermination . | . . . . . . . Reinforcement 3 | . . . . 1 . 2 Assault . | . . . . . . . Garrison . | . . . . . . . Intercept . | . . . . . . . Searches Triggered . | . . . . . . . Construction Impeded 1 | . . . . . . 1 Haulers Reinforced 1 | . . . . . . 1 Active Scanning Responses . | . . . . . . . Cargo Convoy Interrupts . | . . . . . . . Stealth | -11 -10 -10 -9 -8 -7 -6 --------- Run | Yrd Mat Min Mat Mat Fac Fac Distress Signals 2 | . 1 . . 1 . . Communications Jammed . | . . . . . . . Distress Signals . | . . . . . . . Times Spotted 34 | . 4 . 7 12 3 8 Peak Tracking Total 8 | . 2 . 4 5 2 8 Tactical Retreats 1 | . . . . . 1 . Traps | -11 -10 -10 -9 -8 -7 -6 ------- Run | Yrd Mat Min Mat Mat Fac Fac Traps Triggered 2 | . . . 1 1 . . Indirectly . | . . . . . . . Trap Hack Attempts . | . . . . . . . Triggered . | . . . . . . . Disarmed . | . . . . . . . Reprogrammed . | . . . . . . . Reused . | . . . . . . . Traps Extracted . | . . . . . . . Installed . | . . . . . . . Triggered . | . . . . . . . Machines | -11 -10 -10 -9 -8 -7 -6 ---------- Run | Yrd Mat Min Mat Mat Fac Fac Machines Disabled 7 | . . . 1 5 . 1 Max in Single Turn 2 | . . . 1 2 . 1 Machines Repaired . | . . . . . . . Machines Dismantled . | . . . . . . . Machines Sabotaged . | . . . . . . . Overloaded Fab Kills . | . . . . . . . Hacking | -11 -10 -10 -9 -8 -7 -6 --------- Run | Yrd Mat Min Mat Mat Fac Fac Machines Accessed 8 | . . 1 . 4 2 1 Terminals 3 | . . . . 3 . . Fabricators 1 | . . . . . 1 . Repair Stations . | . . . . . . . Recycling Units . | . . . . . . . Scanalyzers 2 | . . . . 1 . 1 Garrison Access 1 | . . . . . 1 . Total Hacks 18 | . . 1 . 11 3 3 Successful 12 | . . 1 . 8 2 1 Failed 6 | . . . . 3 1 2 Catastrophic 2 | . . . . . 1 1 Database Lockouts . | . . . . . . . Manual 3 | . . . . 3 . . Terminals 9 | . . . . 9 . . Fabricators 2 | . . . . . 2 . Repair Stations . | . . . . . . . Recycling Units . | . . . . . . . Scanalyzers 5 | . . . . 2 . 3 Garrison Access 1 | . . . . . 1 . Terminal Hacks 7 | . . 1 . 6 . . Open Door 1 | . . 1 . . . . Unreport Threat 2 | . . . . 2 . . Dispatch Records 1 | . . . . 1 . . Recall Reinforcements 1 | . . . . 1 . . Zone Layout 2 | . . . . 2 . . Fabricator Hacks 2 | . . . . . 2 . Load Schematic 1 | . . . . . 1 . Build 1 | . . . . . 1 . Repair Station Hacks . | . . . . . . . Recycling Unit Hacks . | . . . . . . . Scanalyzer 3 | . . . . 2 . 1 Insert Component 2 | . . . . 1 . 1 Analyze 1 | . . . . 1 . . Garrison Access Hacks . | . . . . . . . Unauthorized Hacks . | . . . . . . . Terminals . | . . . . . . . Fabricators . | . . . . . . . Repair Stations . | . . . . . . . Recycling Units . | . . . . . . . Scanalyzers . | . . . . . . . Garrison Access . | . . . . . . . Data Cores Recovered . | . . . . . . . Used . | . . . . . . . Hacking Detections 7 | . . . . 4 2 1 Full Trace Events 5 | . . . . 3 1 1 Feedback Events . | . . . . . . . Feedback Blocked . | . . . . . . . Robot Schematics Acquired . | . . . . . . . Robots Built . | . . . . . . . Authchips . | . . . . . . . Time . | . . . . . . . Total Robot Build Rating . | . . . . . . . Part Schematics Acquired 1 | . . . . 1 . . Parts Built 2 | . . . . . 2 . Authchips . | . . . . . . . Time 31 | . . . . . 31 . Total Part Build Rating 4 | . . . . . 4 . Parts Repaired . | . . . . . . . Time . | . . . . . . . Parts Recycled . | . . . . . . . Recycled Matter . | . . . . . . . Retrieved Matter . | . . . . . . . Retrieved Components . | . . . . . . . Parts Scanalyzed 2 | . . . . 1 . 1 Part Schematics Acquired 1 | . . . . 1 . . Parts Damaged . | . . . . . . . Bothacking | -11 -10 -10 -9 -8 -7 -6 ------------ Run | Yrd Mat Min Mat Mat Fac Fac Used RIF Installer . | . . . . . . . Robots Hacked . | . . . . . . . Non-combat . | . . . . . . . Combat . | . . . . . . . Robot Hacks Applied . | . . . . . . . Relay Couplers Released . | . . . . . . . Fabnet Peak Effective % . | . . . . . . . Robots Rewired . | . . . . . . . Allies Hacked . | . . . . . . . Hacks Repelled . | . . . . . . . Allies | -11 -10 -10 -9 -8 -7 -6 -------- Run | Yrd Mat Min Mat Mat Fac Fac Total Allies 3 | . . 3 . . . . Largest Group 3 | . . 3 3 . . . Highest-Rated Group 40 | . . 40 40 . . . Highest-Rated Ally 16 | . . 16 16 . . . Total Orders . | . . . . . . . Ally Attacks 4 | . . . 4 . . . Total Damage 43 | . . . 43 . . . Kills 1 | . . . 1 . . . Allies Corrupted . | . . . . . . . Allies Melted . | . . . . . . . Intel | -11 -10 -10 -9 -8 -7 -6 ------- Run | Yrd Mat Min Mat Mat Fac Fac Active Infowar (turns) . | . . . . . . . Robot Analysis Total . | . . . . . . . Derelict Logs Recovered 1 | . . 1 . . . . Drone Launches . | . . . . . . . Drone Recoveries . | . . . . . . . Exploration | -11 -10 -10 -9 -8 -7 -6 ------------- Run | Yrd Mat Min Mat Mat Fac Fac Turns Passed 1419 | 68 224 450 140 299 190 48 Spaces Moved 1423 | 43 141 364 154 389 266 66 Core 18 | 18 . . . . . . Treads . | . . . . . . . Legs 144 | 25 119 . . . . . Wheels . | . . . . . . . Hover 1261 | . 22 364 154 389 266 66 Flight . | . . . . . . . Fastest Speed 38 | 50 56 116 52 48 42 38 Average Speed 78 | 133 114 116 82 51 46 45 Slowest Speed 200 | 200 120 116 180 52 48 116 Overloaded Moves . | . . . . . . . Propulsion Burnouts . | . . . . . . . Robots Hopped . | . . . . . . . Potential Cave-ins . | . . . . . . . Cave-ins Triggered . | . . . . . . . Exploration Rate (%) 29 | 3 39 85 27 44 8 2 Regions Visited 6 Branch Regions 1 Pre-discovered Areas . | . . . . . . . Known Exits Taken 1 | . . . 1 . . . Unknown Exits Taken 5 | 1 1 1 . 1 1 . Scrap Searched 2 | . . 2 . . . . Spaces Dug . | . . . . . . . Terrain Destroyed 137 | . . . 18 99 . 20 Melee . | . . . . . . . Projectile . | . . . . . . . AOE 137 | . . . 18 99 . 20 Terrain Rammed . | . . . . . . . Walls Destroyed . | . . . . . . . Machines Disabled . | . . . . . . . Actions | -11 -10 -10 -9 -8 -7 -6 --------- Run | Yrd Mat Min Mat Mat Fac Fac Total 1650 | 51 182 390 160 458 329 80 Wait 138 | . 8 23 . 47 55 5 Move 1418 | 42 140 363 154 388 265 66 Hop . | . . . . . . . Pick Up 11 | 2 6 . . 1 2 . Fast Attach 20 | 6 3 1 4 4 2 . Attach 7 | . 1 . . 1 3 2 Detach 7 | . 2 1 . 2 1 1 Swap 5 | . 2 2 . . 1 . Drop 9 | 1 7 . . 1 . . Fire 33 | . 13 . 2 14 . 4 Melee . | . . . . . . . Ram 2 | . . . . . . 2 Kick . | . . . . . . . Crush . | . . . . . . . Escape Stasis . | . . . . . . . Rewire . | . . . . . . . Trap . | . . . . . . . Miscellaneous . | . . . . . . . Route ------- -11/Scrapyard -10/Materials -10/Mines -9/Materials -8/Materials -7/Factory -6/Factory History --------- Turn | Location | Event 25 | -11/Scrapyard | Discovered new exit (range 15) 69 | -11/Scrapyard | Entered Materials 253 | -10/Materials | Discovered new exit (range 12) 293 | -10/Materials | Entered Mines 304 | -10/Mines | Met a Derelict bent on vengeance 316 | -10/Mines | Build established: Mutant 325 | -10/Mines | Assisted by bots powering up and referring to "LRC-V3" 582 | -10/Mines | Learned location of 1 exit from Materials 621 | -10/Mines | Found the Drone Emporium 638 | -10/Mines | Found Prototype Device 638 | -10/Mines | Identified Thief Drone Bay 724 | -10/Mines | Discovered new exit (range 10) 743 | -10/Mines | Entered Materials 743 | -9/Materials | Accompanied by 3 allies 743 | -9/Materials | Evolved 2 slots: Propulsion x1, Utility x1 744 | -9/Materials | Identified exit to Materials 883 | -9/Materials | Entered another Materials area 883 | -8/Materials | Evolved 2 slots: Propulsion x1, Utility x1 1175 | -8/Materials | Discovered new exit (range 6) 1182 | -8/Materials | Entered Factory 1182 | -7/Factory | Evolved 2 slots: Propulsion x1, Weapon x1 1339 | -7/Factory | Fabricated Imp. Hover Unit (x2) 1366 | -7/Factory | Discovered new exit (range 14) 1372 | -7/Factory | Entered another Factory area 1372 | -6/Factory | Evolved 2 slots: Propulsion x1, Utility x1 1420 | -6/Factory | Self-destructed Last Messages --------------- Destabilizing: System interference. Grenade Launcher temporarily disabled. Acquired 6 matter. C-30 ARC bursts open, deploying its payload. S-27 Virus unfolds itself. Airjet destroyed. S-27 Virus destroyed. Hover Unit destroyed. S-27 Virus destroyed. Grenade Launcher destroyed. Destroyed Grenade Launcher. Imp. Hover Unit destroyed. Critical hit (Burn: +37). Critical hit (Destroy). Acquired 5 matter. Grenade Launcher destroyed. The unstable cave ceiling collapses. Lgt. Armor Plating destroyed. Acquired 4 matter. Imp. Hover Unit destroyed. Map ----- +----------------------------------------------------+ | ?????????????????????????????????????????????????? | | ?????????????????????????????????????????????????? | | ?????????????????????????????????????????????????? | | ?????????????????????????????????????????????????? | | ?????????????????????????????????????????????????? | | ??????????????????????????????????###########????? | | ????????????????????????????####### #????? | | ????????????????????????????# # #????? | | ????????????????????????????# # """ "" #????? | | ????????????????????????????# # """ "" #????? | | ????????????????????????????# + """ """ #????? | | ????????????????????????????# # """ #????? | | ???????????????############## # """ #????? | | ???????????????# # # #????? | | ???????????????# "" """" # ###########????? | | ???????????????# "" """" # ########???????? | | ???????????????/ "" """" # #???????? | | ???????????????# S """" # #???????? | | ???????????????# "" A + #???????? | | ???????????????# "" """"ss# #???????? | | ???????????????# "" """" #???????? | | ???????????????# """ #### ###???????? | | ???????????????# " [ #??? #?????????? | | ???????????????# ! s #????#?????????? | | ???????????????# "% gs! #??????????????? | | ???????????????#### "# #@ # #??????????????? | | ????????############## # #### #??????????????? | | ????????# # #???? #??????????????? | | ????????# #???? #??????????????? | | ????????# #???? #??????????????? | | ????????# = ? #??????????????? | | ????????# """ """ +??????????????? | | ???????????"" """ + #??????????????? | | ??????????????""" # #??????????????? | | ?????????????? "" # #??????????????? | | ?????????????? "" # #??????????????? | | ?????????????? # #??????????????? | | ????????????? # #??????????????? | | ????????????? # +??????????????? | | ?????????????#######?# ???????????????? | | ?????????????????????# ???????????????? | | ?????????????????????? ?????????????????? | | ?????????????????????? ???????????????????? | | ?????????????????????? ??????????????????????? | | ?????????????????????? ????????????????????????? | | ?????????????????????????????????????????????????? | | ?????????????????????????????????????????????????? | | ?????????????????????????????????????????????????? | | ?????????????????????????????????????????????????? | | ?????????????????????????????????????????????????? | +----------------------------------------------------+ Best States ------------- Heat Dissipation 37 Energy Generation 10 Energy Capacity 250 Matter Stores 300 Matter Capacity 300 Sight Range 16 Terrain Scan Density 10 Armor Coverage 300 Evasion (%) 56 Launcher Accuracy 20 Offensive Hacking 10 Item Schematics ----------------- Imp. Hover Unit | -8/Materials | Scanalyzed Robot Schematics ------------------ None Fabricated ------------ Imp. Hover Unit | x2 | -7/Factory Repaired ---------- Nothing Alien Tech Used ----------------- None Achievements -------------- None Challenges ------------ None Game ------ Seed WardroneSiegeBeamcaster Manual? 0 Play Time 00:24:27 Cumulative 14.6 hours Start 2025.08.17 @ 10:56:42 End 2025.08.17 @ 11:20:41 Sessions 2 Manual Loads 0 Difficulty Rogue Special Mode None Game No. 28 Rogue 28 Adventurer 0 Explorer 0 Win Type - Total 0 Types 0/0/0/0/0/0/0/0/0/0 Lore% 3 Gallery% 16 Achievement% 18 Wizard Run 0 Options --------- Layout 1 ASCII 1 Keyboard 0 Movement Numpad Keybinds 0 Fullscreen 1 Font 24/Cog Map View 50x35 Zoom Use 0% Tactical HUD 0 Map Filters NONE Filters NONE Steam 0 RUN: 86883ef7-eae2-44d3-bf25-e83fa4931634